fUST/lending_fUST_20250518
["ID","MTS","AMOUNT","RATE_DAILY","PERIOD"]
[361475630,1747579850764,-3744.51631428,0.00018728,2]
[361475631,1747579850774,-232.0,0.00018755,2]
[361475634,1747579850786,-151.0,0.000188,2]
[361475636,1747579850796,-10352.04835435,0.000189,2]
[361475638,1747579850805,-151.0,0.000191,2]
[361475640,1747579850816,-158.522689,0.00019122,2]
[361475642,1747579850826,-3744.51631428,0.00019176,2]
[361475644,1747579850835,-309.67534977,0.00019178,2]
[361475646,1747579850844,-155.0,0.00019178,2]
[361475647,1747579850854,-898.877237,0.00019178,2]
[361475650,1747579850864,-166.0,0.00019178,2]
[361475652,1747579850872,-233.32778591,0.00019178,3]
[361475653,1747579850883,-1136.39803199,0.00019288,2]
[361475654,1747579850892,-160.0,0.00019328,2]
[361475655,1747579850901,-151.0,0.00019329,2]
[361475656,1747579850911,-151.0,0.00019329,2]
[361475657,1747579850920,-208.04388,0.00019329,2]
[361475658,1747579850930,-208.04388,0.00019329,2]
[361475659,1747579850940,-100000.0,0.00019329,2]
[361475660,1747579850950,-2200.0,0.00019368,2]
[361475661,1747579850959,-151.0,0.000194,2]
[361475662,1747579850969,-160.0,0.00019456,3]
[361475663,1747579850978,-180.05941961,0.00019547,2]
[361475664,1747579850988,-837.46928212,0.0001958,2]
[361475665,1747579850997,-13545.95750165,0.00019602,2]
[361475666,1747579851006,-2235.0,0.00019602,2]
[361475667,1747579851016,-707.0,0.00019602,2]
[361475668,1747579851025,-3744.51631428,0.00019624,2]
[361475669,1747579851034,-151.0,0.000197,2]
[361475670,1747579851043,-3000.0,0.00019736,2]
[361475671,1747579851052,-1636.721775,0.0001978,5]
[361475672,1747579851062,-600.0,0.00019786,2]
[361475673,1747579851071,-3000.0,0.000198,2]
[361475674,1747579851081,-38670.24959199,0.000198,2]
[361475675,1747579851090,-151.0,0.000198,2]
[361475676,1747579851099,-151.0,0.000198,2]
[361475677,1747579851109,-208.04388,0.000198,2]
[361475678,1747579851118,-208.04388,0.000198,2]
[361475679,1747579851127,-1000.0,0.000198,5]
[361475680,1747579851136,-1000.0,0.0001982,5]
[361475681,1747579851145,-1000.0,0.0001984,5]
[361475682,1747579851154,-1000.0,0.0001986,5]
[361475683,1747579851164,-1000.0,0.0001988,5]
[361475685,1747579851173,-3072.39,0.000199,2]
[361475686,1747579851183,-1000.0,0.000199,5]
[361475687,1747579851192,-8147.33941651,0.000199,2]
[361475699,1747579851298,-379.73,0.000199,2]
[361475701,1747579851309,-1637.5371736,0.000199,2]
[361475703,1747579851319,-158.522689,0.000199,7]
[361475705,1747579851328,-48.70732443,0.0001992,5]
[361475724,1747579851494,-1269.08,0.00014383,2]
[361475726,1747579851504,-1269.08,0.0001452,2]
[361475728,1747579851513,-1269.08,0.00014657,2]
[361475730,1747579851524,-1269.08,0.00014794,2]
[361475732,1747579851534,-1269.08,0.00014931,2]
[361475734,1747579851546,-1269.08,0.00015068,2]
[361475736,1747579851555,-1269.08,0.00015205,2]
[361475738,1747579851564,-1269.08,0.00015342,2]
[361475740,1747579851574,-1269.08,0.00015479,2]
[361475742,1747579851583,-951.29267557,0.0001992,5]
[361475744,1747579851593,-1000.0,0.0001994,5]
[361475746,1747579851602,-1000.0,0.0001996,5]
[361475748,1747579851611,-1000.0,0.0001998,5]
[361475750,1747579851623,-600.0,0.00019992,2]
[361475752,1747579851632,-160.43817396,0.00019999,2]
[361475754,1747579851641,-2000.0,0.0002,2]
[361475756,1747579851650,-1000.0,0.0002,2]
[361475758,1747579851660,-2264.21,0.0002,2]
[361475760,1747579851670,-13862.0,0.0002,3]
[361475761,1747579851679,-564.0,0.0002,2]
[361475763,1747579851689,-281.79,0.0002,2]
[361475766,1747579851699,-158.00817791,0.0002,2]
[361475768,1747579851708,-1179.01580424,0.0002,2]
[361475770,1747579851718,-28401.98719346,0.0002,2]
[361476903,1747580352073,947.91,0.00017,120]
[361476904,1747580420453,-151.71809536,0.000114,2]
[361476905,1747580422036,-148.28190464,0.000114,2]
[361476910,1747580816146,-561.49731072,0.00011397,2]
[361476911,1747580818040,-247.00956722,0.00011397,2]
[361476912,1747580821572,-157.48362138,0.00011397,2]
[361476913,1747580823599,-165.01443842,0.00011397,2]
[361476914,1747580826624,-243.10366515,0.00011397,2]
[361476915,1747580829763,-50.89139711,0.00011397,2]
[361476972,1747581032282,-153.03333796,0.00011528,2]
[361476973,1747581032291,-153.03333796,0.00011644,2]
[361476974,1747581032300,-153.03333796,0.00011644,2]
[361476975,1747581032309,-153.03333796,0.00011645,2]
[361476976,1747581032319,-153.03333796,0.00011645,2]
[361476977,1747581032328,-300.0,0.00011743,2]
[361476978,1747581032338,-2069.0,0.0001175,2]
[361476979,1747581032348,-300.0,0.00011808,2]
[361476980,1747581032358,-1200.0,0.00011808,2]
[361476981,1747581032367,-11944.4265983,0.00011811,2]
[361476982,1747581032376,-19307.9382045,0.00012095,2]
[361476983,1747581032386,-250.0,0.00012095,2]
[361476985,1747581032395,-192.97,0.00012329,2]
[361476986,1747581032404,-589.22,0.00012329,2]
[361476988,1747581032414,-293.41069964,0.00012675,2]
[361476991,1747581032423,-420.0,0.00012895,2]
[361476993,1747581032433,-3867.95763876,0.000129,2]
[361477001,1747581032500,-500.0,0.00011808,2]
[361477003,1747581032510,-500.0,0.00011808,2]
[361477005,1747581032519,-399.03056371,0.00011808,2]
[361477007,1747581032529,-500.0,0.00011808,2]
[361477009,1747581032538,-842.3232695,0.00011808,2]
[361477010,1747581032548,-500.0,0.00011808,2]
[361477013,1747581032557,-500.0,0.00011808,2]
[361477014,1747581032566,-2765.06616735,0.000129,2]
[361477017,1747581032576,-420.0,0.00012965,2]
[361477018,1747581032586,-1125.0,0.00012988,2]
[361477020,1747581032596,-713.9480248,0.00013247,2]
[361477023,1747581032605,-6633.02380595,0.00013348,2]
[361477024,1747581032615,-713.94802478,0.00013472,2]
[361477026,1747581032625,-713.94802478,0.00013697,2]
[361477029,1747581032635,-500.0,0.00013697,2]
[361477030,1747581032644,-500.0,0.00013697,2]
[361477033,1747581032654,-500.0,0.00013697,2]
[361477035,1747581032663,-500.0,0.00013697,2]
[361477037,1747581032674,-500.0,0.00013697,2]
[361477038,1747581032684,-500.0,0.00013697,2]
[361477041,1747581032694,-500.0,0.00013697,2]
[361477043,1747581032703,-500.0,0.00013697,2]
[361477044,1747581032712,-500.0,0.00013697,2]
[361477047,1747581032722,-339.33885837,0.00013697,2]
[361477048,1747581032731,-500.0,0.00013697,2]
[361477050,1747581032741,-500.0,0.00013697,2]
[361477053,1747581032750,-500.0,0.00013697,2]
[361477055,1747581032760,-587.77664629,0.00013697,2]
[361477057,1747581032769,-500.0,0.00013697,2]
[361477059,1747581032778,-500.0,0.00013697,2]
[361477061,1747581032788,-400.0,0.00013698,2]
[361477063,1747581032797,-400.0,0.00013698,2]
[361477065,1747581032807,-431.94,0.00013698,2]
[361477066,1747581032816,-400.0,0.00013698,2]
[361477069,1747581032826,-677.59,0.00013698,2]
[361477070,1747581032835,-677.59,0.00013698,2]
[361477073,1747581032845,-677.59,0.00013698,2]
[361477075,1747581032854,-677.59,0.00013698,2]
[361477077,1747581032863,-677.59,0.00013698,2]
[361477078,1747581032873,-677.59,0.00013698,2]
[361477081,1747581032882,-677.59,0.00013698,2]
[361477083,1747581032892,-677.59,0.00013698,2]
[361477085,1747581032902,-677.59,0.00013698,2]
[361477087,1747581032911,-677.59,0.00013698,2]
[361477089,1747581032921,-677.59,0.00013698,2]
[361477091,1747581032930,-400.0,0.00013698,2]
[361477093,1747581032940,-402.20124875,0.00013698,2]
[361477095,1747581032949,-300.0,0.00013698,2]
[361477097,1747581032959,-400.0,0.00013698,2]
[361477099,1747581032968,-400.0,0.00013698,2]
[361477101,1747581032978,-450.0,0.00013698,2]
[361477103,1747581032987,-160.0,0.00013698,2]
[361477105,1747581032997,-512.9,0.00013698,2]
[361477107,1747581033006,-450.0,0.00013698,2]
[361477109,1747581033016,-400.0,0.00013698,2]
[361477111,1747581033025,-450.0,0.00013698,2]
[361477113,1747581033035,-450.0,0.00013698,2]
[361477115,1747581033044,-450.0,0.00013698,2]
[361477117,1747581033053,-403.48951065,0.00013698,2]
[361477119,1747581033063,-400.0,0.00013698,2]
[361477121,1747581033072,-450.0,0.00013698,2]
[361477123,1747581033082,-550.9,0.00013698,2]
[361477125,1747581033093,-400.0,0.00013698,2]
[361477127,1747581033104,-469.1,0.00013698,2]
[361477129,1747581033116,-400.84573439,0.00013698,2]
[361477131,1747581033126,-400.0,0.00013698,2]
[361477133,1747581033135,-400.0,0.00013698,2]
[361477135,1747581033145,-450.0,0.00013698,2]
[361477137,1747581033154,-402.60835027,0.00013698,2]
[361477139,1747581033163,-400.0,0.00013698,2]
[361477141,1747581033173,-450.0,0.00013698,2]
[361477142,1747581033183,-400.12497917,0.00013698,2]
[361477144,1747581033192,-400.0,0.00013698,2]
[361477146,1747581033201,-450.0,0.00013698,2]
[361477148,1747581033211,-400.0,0.00013698,2]
[361477150,1747581033220,-450.0,0.00013698,2]
[361477152,1747581033229,-400.0,0.00013698,2]
[361477154,1747581033239,-450.0,0.00013698,2]
[361477156,1747581033248,-450.0,0.00013698,2]
[361477158,1747581033257,-450.0,0.00013698,2]
[361477160,1747581033267,-400.00118277,0.00013698,2]
[361477162,1747581033276,-400.83855506,0.00013698,2]
[361477164,1747581033286,-450.0,0.00013698,2]
[361477166,1747581033295,-400.0,0.00013698,2]
[361477168,1747581033304,-404.8853484,0.00013698,2]
[361477170,1747581033314,-450.0,0.00013698,2]
[361477172,1747581033323,-401.64209689,0.00013698,2]
[361477174,1747581033332,-417.37,0.00013698,2]
[361477176,1747581033342,-348.49841985,0.00013698,2]
[361477178,1747581033351,-400.0,0.00013698,2]
[361477180,1747581033360,-400.0,0.00013698,2]
[361477182,1747581033369,-578.79,0.00013698,2]
[361477184,1747581033379,-450.0,0.00013698,2]
[361477186,1747581033388,-450.0,0.00013698,2]
[361477188,1747581033398,-400.0,0.00013698,2]
[361477189,1747581033407,-400.0,0.00013698,2]
[361477190,1747581033417,-500.0,0.00013698,2]
[361477191,1747581033426,-500.0,0.00013698,2]
[361477193,1747581033435,-500.0,0.00013698,2]
[361477194,1747581033444,-500.0,0.00013698,2]
[361477196,1747581033454,-500.0,0.00013698,2]
[361477197,1747581033463,-500.0,0.00013698,2]
[361477199,1747581033473,-500.0,0.00013698,2]
[361477201,1747581033483,-500.0,0.00013698,2]
[361477202,1747581033493,-500.0,0.00013698,2]
[361477204,1747581033503,-400.0,0.00013698,2]
[361477206,1747581033512,-450.0,0.00013698,2]
[361477208,1747581033522,-450.0,0.00013698,2]
[361477210,1747581033531,-401.28383449,0.00013698,2]
[361477212,1747581033541,-587.04,0.00013698,2]
[361477213,1747581033550,-450.0,0.00013698,2]
[361477214,1747581033560,-450.0,0.00013698,2]
[361477216,1747581033569,-450.0,0.00013698,2]
[361477217,1747581033578,-198.78,0.00013698,2]
[361477218,1747581033588,-450.0,0.00013698,2]
[361477219,1747581033598,-450.0,0.00013698,2]
[361477220,1747581033608,-400.0,0.00013698,2]
[361477221,1747581033618,-400.0,0.00013698,2]
[361477222,1747581033628,-477.17,0.00013698,2]
[361477223,1747581033638,-500.0,0.00013698,2]
[361477224,1747581033648,-401.19696074,0.00013698,2]
[361477225,1747581033658,-500.0,0.00013698,2]
[361477226,1747581033667,-500.0,0.00013698,2]
[361477227,1747581033677,-500.0,0.00013698,2]
[361477228,1747581033687,-450.0,0.00013698,2]
[361477229,1747581033697,-500.0,0.00013698,2]
[361477230,1747581033707,-500.0,0.00013698,2]
[361477231,1747581033716,-500.0,0.00013698,2]
[361477232,1747581033726,-500.0,0.00013698,2]
[361477233,1747581033735,-500.0,0.00013698,2]
[361477234,1747581033744,-450.0,0.00013698,2]
[361477235,1747581033754,-400.0,0.00013698,2]
[361477236,1747581033764,-450.0,0.00013698,2]
[361477237,1747581033773,-405.76350598,0.00013698,2]
[361477238,1747581033782,-437.49,0.00013698,2]
[361477239,1747581033791,-450.0,0.00013698,2]
[361477240,1747581033801,-450.0,0.00013698,2]
[361477241,1747581033811,-450.0,0.00013698,2]
[361477242,1747581033821,-450.0,0.00013698,2]
[361477243,1747581033830,-867.57,0.00013698,2]
[361477244,1747581033840,-400.0,0.00013698,2]
[361477245,1747581033850,-400.0,0.00013698,2]
[361477246,1747581033860,-450.0,0.00013698,2]
[361477247,1747581033999,-400.0,0.00013698,2]
[361477248,1747581034011,-969.45,0.00013698,2]
[361477249,1747581034020,-400.0,0.00013698,2]
[361477250,1747581034030,-400.0,0.00013698,2]
[361477251,1747581034040,-450.0,0.00013698,2]
[361477252,1747581034049,-507.47,0.00013698,2]
[361477253,1747581034059,-400.0,0.00013698,2]
[361477254,1747581034068,-450.0,0.00013698,2]
[361477255,1747581034078,-500.0,0.00013698,2]
[361477256,1747581034087,-500.0,0.00013698,2]
[361477257,1747581034097,-500.0,0.00013698,2]
[361477258,1747581034110,-500.0,0.00013698,2]
[361477259,1747581034121,-500.0,0.00013698,2]
[361477260,1747581034131,-500.0,0.00013698,2]
[361477261,1747581034141,-500.0,0.00013698,2]
[361477262,1747581034151,-500.0,0.00013698,2]
[361477263,1747581034161,-500.0,0.00013698,2]
[361477264,1747581034174,-450.0,0.00013698,2]
[361477265,1747581034183,-400.0,0.00013698,2]
[361477266,1747581034193,-450.0,0.00013698,2]
[361477267,1747581034202,-450.0,0.00013698,2]
[361477268,1747581034212,-450.0,0.00013698,2]
[361477269,1747581034221,-450.0,0.00013698,2]
[361477270,1747581034230,-450.0,0.00013698,2]
[361477271,1747581034239,-400.65491704,0.00013698,2]
[361477272,1747581034249,-402.65771288,0.00013698,2]
[361477273,1747581034258,-2835.5,0.00013698,2]
[361477274,1747581034268,-400.0,0.00013698,2]
[361477275,1747581034278,-400.0,0.00013698,2]
[361477276,1747581034287,-450.0,0.00013698,2]
[361477277,1747581034297,-450.0,0.00013698,2]
[361477278,1747581034306,-400.0,0.00013698,2]
[361477279,1747581034316,-450.0,0.00013698,2]
[361477280,1747581034326,-5358.41,0.00013698,2]
[361477281,1747581034335,-450.0,0.00013698,2]
[361477282,1747581034346,-400.0,0.00013698,2]
[361477283,1747581034356,-450.0,0.00013698,2]
[361477284,1747581034365,-400.0,0.00013698,2]
[361477285,1747581034375,-271.38668585,0.00013698,2]
[361477286,1747581034385,-400.0,0.00013698,2]
[361477287,1747581034395,-438.17,0.00013698,2]
[361477288,1747581034405,-1124.46,0.00013698,2]
[361477289,1747581034414,-407.3406,0.00013698,2]
[361477290,1747581034424,-400.0,0.00013698,2]
[361477291,1747581034435,-467.32,0.00013698,2]
[361477292,1747581034444,-1699.94,0.00013698,2]
[361477293,1747581034454,-544.16,0.00013698,2]
[361477294,1747581034463,-430.14,0.00013698,2]
[361477295,1747581034473,-387.64834771,0.00013698,2]
[361477296,1747581034483,-2102.31,0.00013698,2]
[361477297,1747581034492,-400.0,0.00013698,2]
[361477298,1747581034502,-450.0,0.00013698,2]
[361477299,1747581034511,-450.0,0.00013698,2]
[361477300,1747581034521,-580.7,0.00013698,2]
[361477301,1747581034530,-400.0,0.00013698,2]
[361477302,1747581034540,-580.15,0.00013698,2]
[361477303,1747581034549,-450.0,0.00013698,2]
[361477304,1747581034559,-400.0,0.00013698,2]
[361477305,1747581034568,-400.0,0.00013698,2]
[361477306,1747581034578,-450.0,0.00013698,2]
[361477307,1747581034587,-400.0,0.00013698,2]
[361477308,1747581034597,-400.0,0.00013698,2]
[361477309,1747581034607,-400.0,0.00013698,2]
[361477310,1747581034617,-212.23,0.00013698,2]
[361477311,1747581034627,-450.0,0.00013698,2]
[361477312,1747581034637,-400.0,0.00013698,2]
[361477313,1747581034646,-410.34029624,0.00013698,2]
[361477314,1747581034656,-401.08225389,0.00013698,2]
[361477315,1747581034666,-450.0,0.00013698,2]
[361477316,1747581034675,-234.42298342,0.00013698,2]
[361477317,1747581034685,-450.0,0.00013698,2]
[361477318,1747581034695,-400.0,0.00013698,2]
[361477319,1747581034705,-400.0,0.00013698,2]
[361477320,1747581034715,-333.90654948,0.00013698,2]
[361477321,1747581034724,-450.0,0.00013698,2]
[361477322,1747581034734,-450.0,0.00013698,2]
[361477323,1747581034744,-450.0,0.00013698,2]
[361477324,1747581034753,-397.82633996,0.00013698,2]
[361477325,1747581034763,-400.0,0.00013698,2]
[361477326,1747581034773,-405.26315831,0.00013698,2]
[361477327,1747581034782,-555.25,0.00013698,2]
[361477328,1747581034791,-400.0,0.00013698,2]
[361477329,1747581034801,-450.0,0.00013698,2]
[361477330,1747581034811,-450.0,0.00013698,2]
[361477331,1747581034821,-400.0,0.00013698,2]
[361477332,1747581034830,-450.0,0.00013698,2]
[361477333,1747581034840,-400.0,0.00013698,2]
[361477334,1747581034850,-406.10263814,0.00013698,2]
[361477335,1747581034859,-450.0,0.00013698,2]
[361477336,1747581034868,-400.0,0.00013698,2]
[361477337,1747581034877,-450.0,0.00013698,2]
[361477338,1747581034886,-450.0,0.00013698,2]
[361477339,1747581034896,-450.0,0.00013698,2]
[361477340,1747581034905,-400.0,0.00013698,2]
[361477341,1747581034914,-450.0,0.00013698,2]
[361477342,1747581034923,-198.91355855,0.00013698,2]
[361477343,1747581034933,-400.0,0.00013698,2]
[361477344,1747581034942,-593.99,0.00013698,2]
[361477345,1747581034952,-450.0,0.00013698,2]
[361477346,1747581034961,-400.85533004,0.00013698,2]
[361477347,1747581034970,-450.0,0.00013698,2]
[361477348,1747581034980,-450.0,0.00013698,2]
[361477349,1747581034990,-400.0,0.00013698,2]
[361477350,1747581035000,-450.0,0.00013698,2]
[361477351,1747581035010,-400.0,0.00013698,2]
[361477352,1747581035019,-450.0,0.00013698,2]
[361477353,1747581035028,-400.0,0.00013698,2]
[361477354,1747581035037,-450.0,0.00013698,2]
[361477355,1747581035046,-450.0,0.00013698,2]
[361477356,1747581035055,-511.62993448,0.00013698,2]
[361477357,1747581035064,-450.0,0.00013698,2]
[361477358,1747581035074,-704.0,0.00013698,2]
[361477359,1747581035083,-450.0,0.00013698,2]
[361477360,1747581035092,-400.63354523,0.00013698,2]
[361477361,1747581035102,-400.0,0.00013698,2]
[361477362,1747581035116,-400.0,0.00013698,2]
[361477363,1747581035125,-401.51961297,0.00013698,2]
[361477364,1747581035135,-450.0,0.00013698,2]
[361477365,1747581035145,-846.34,0.00013698,2]
[361477366,1747581035156,-403.08460561,0.00013698,2]
[361477367,1747581035165,-463.46,0.00013698,2]
[361477368,1747581035175,-450.0,0.00013698,2]
[361477369,1747581035187,-450.0,0.00013698,2]
[361477370,1747581035197,-450.0,0.00013698,2]
[361477371,1747581035207,-450.0,0.00013698,2]
[361477372,1747581035216,-431.39,0.00013698,2]
[361477373,1747581035225,-450.0,0.00013698,2]
[361477374,1747581035235,-450.0,0.00013698,2]
[361477375,1747581035244,-450.0,0.00013698,2]
[361477376,1747581035255,-400.0,0.00013698,2]
[361477377,1747581035266,-585.65,0.00013698,2]
[361477378,1747581035276,-450.0,0.00013698,2]
[361477379,1747581035286,-400.0,0.00013698,2]
[361477380,1747581035297,-450.0,0.00013698,2]
[361477381,1747581035306,-495.98,0.00013698,2]
[361477382,1747581035316,-400.0,0.00013698,2]
[361477383,1747581035328,-401.39192368,0.00013698,2]
[361477384,1747581035339,-450.0,0.00013698,2]
[361477385,1747581035349,-407.74737303,0.00013698,2]
[361477386,1747581035360,-460.09,0.00013698,2]
[361477387,1747581035369,-400.0,0.00013698,2]
[361477388,1747581035380,-400.0,0.00013698,2]
[361477389,1747581035390,-1146.45,0.00013698,2]
[361477390,1747581035400,-397.28245832,0.00013698,2]
[361477391,1747581035410,-450.0,0.00013698,2]
[361477392,1747581035420,-400.0,0.00013698,2]
[361477393,1747581035429,-400.0,0.00013698,2]
[361477394,1747581035439,-1483.49,0.00013698,2]
[361477395,1747581035448,-300.0,0.00013698,2]
[361477396,1747581035457,-241.21054526,0.00013698,2]
[361477397,1747581035467,-450.0,0.00013698,2]
[361477398,1747581035477,-400.0,0.00013698,2]
[361477399,1747581035486,-294.48,0.00013698,2]
[361477400,1747581035495,-400.9927281,0.00013698,2]
[361477401,1747581035505,-451.03,0.00013698,2]
[361477402,1747581035515,-400.0,0.00013698,2]
[361477403,1747581035524,-400.0,0.00013698,2]
[361477404,1747581035535,-405.23052436,0.00013698,2]
[361477405,1747581035544,-450.0,0.00013698,2]
[361477406,1747581035554,-398.1015585,0.00013698,2]
[361477407,1747581035563,-400.0,0.00013698,2]
[361477408,1747581035573,-400.0,0.00013698,2]
[361477409,1747581035583,-400.0,0.00013698,2]
[361477410,1747581035592,-775.23,0.00013698,2]
[361477411,1747581035602,-450.0,0.00013698,2]
[361477412,1747581035611,-418.17680746,0.00013698,2]
[361477413,1747581035620,-400.0,0.00013698,2]
[361477414,1747581035629,-450.0,0.00013698,2]
[361477415,1747581035639,-450.0,0.00013698,2]
[361477416,1747581035649,-401.14504339,0.00013698,2]
[361477417,1747581035658,-404.49630838,0.00013698,2]
[361477418,1747581035668,-450.0,0.00013698,2]
[361477419,1747581035677,-400.0,0.00013698,2]
[361477420,1747581035687,-400.0,0.00013698,2]
[361477421,1747581035696,-450.0,0.00013698,2]
[361477422,1747581035705,-450.0,0.00013698,2]
[361477423,1747581035714,-450.0,0.00013698,2]
[361477424,1747581035724,-450.0,0.00013698,2]
[361477425,1747581035734,-450.0,0.00013698,2]
[361477426,1747581035743,-437.76621,0.00013699,2]
[361477427,1747581035752,-500.0,0.00013699,2]
[361477428,1747581035763,-500.0,0.00013796,2]
[361477429,1747581035774,-576.25243385,0.00013796,2]
[361477430,1747581035784,-580.56,0.00013796,2]
[361477431,1747581035793,-6633.02380595,0.00013797,2]
[361477432,1747581035803,-677.59,0.00013834,2]
[361477433,1747581035813,-500.0,0.00013834,2]
[361477434,1747581035822,-500.0,0.00013834,2]
[361477435,1747581035832,-151.0,0.00013835,2]
[361477436,1747581035841,-189.087624,0.00013835,2]
[361477437,1747581035851,-352.8235468,0.00013835,2]
[361477438,1747581035860,-450.0,0.00013835,2]
[361477439,1747581035869,-450.0,0.00013835,2]
[361477440,1747581035878,-450.0,0.00013835,2]
[361477441,1747581035888,-450.0,0.00013835,2]
[361477442,1747581035896,-450.0,0.00013835,2]
[361477443,1747581035906,-450.0,0.00013835,2]
[361477444,1747581035915,-450.0,0.00013835,2]
[361477445,1747581035924,-450.0,0.00013835,2]
[361477446,1747581035933,-450.0,0.00013835,2]
[361477447,1747581035942,-450.0,0.00013835,2]
[361477448,1747581035952,-350.0,0.00013835,2]
[361477449,1747581035963,-450.0,0.00013835,2]
[361477450,1747581035974,-450.0,0.00013835,2]
[361477451,1747581035983,-450.0,0.00013835,2]
[361477452,1747581035993,-450.0,0.00013835,2]
[361477453,1747581036004,-450.0,0.00013835,2]
[361477454,1747581036014,-450.0,0.00013835,2]
[361477455,1747581036023,-450.0,0.00013835,2]
[361477456,1747581036032,-477.17,0.00013835,2]
[361477457,1747581036041,-450.0,0.00013835,2]
[361477458,1747581036052,-377.3,0.00013835,2]
[361477459,1747581036062,-368.16,0.00013835,2]
[361477460,1747581036072,-450.0,0.00013835,2]
[361477461,1747581036081,-274.23,0.00013835,2]
[361477462,1747581036090,-450.0,0.00013835,2]
[361477463,1747581036101,-867.57,0.00013835,2]
[361477464,1747581036112,-450.0,0.00013835,2]
[361477465,1747581036121,-969.45,0.00013835,2]
[361477466,1747581036130,-450.0,0.00013835,2]
[361477467,1747581036140,-329.72,0.00013835,2]
[361477468,1747581036149,-450.0,0.00013835,2]
[361477469,1747581036159,-2835.5,0.00013835,2]
[361477470,1747581036168,-212.2,0.00013835,2]
[361477471,1747581036178,-450.0,0.00013835,2]
[361477472,1747581036187,-5358.41,0.00013835,2]
[361477473,1747581036197,-450.0,0.00013835,2]
[361477474,1747581036208,-1124.46,0.00013835,2]
[361477475,1747581036217,-467.32,0.00013835,2]
[361477476,1747581036227,-1699.94,0.00013835,2]
[361477477,1747581036236,-2102.31,0.00013835,2]
[361477478,1747581036246,-450.0,0.00013835,2]
[361477479,1747581036256,-450.0,0.00013835,2]
[361477480,1747581036266,-450.0,0.00013835,2]
[361477481,1747581036275,-450.0,0.00013835,2]
[361477482,1747581036285,-575.76,0.00013835,2]
[361477483,1747581036295,-257.06,0.00013835,2]
[361477484,1747581036305,-450.0,0.00013835,2]
[361477485,1747581036314,-450.0,0.00013835,2]
[361477486,1747581036324,-450.0,0.00013835,2]
[361477487,1747581036333,-450.0,0.00013835,2]
[361477488,1747581036342,-205.42,0.00013835,2]
[361477489,1747581036353,-530.94,0.00013835,2]
[361477490,1747581036362,-450.0,0.00013835,2]
[361477491,1747581036371,-515.1,0.00013835,2]
[361477492,1747581036381,-450.0,0.00013835,2]
[361477493,1747581036392,-450.0,0.00013835,2]
[361477494,1747581036401,-450.0,0.00013835,2]
[361477495,1747581036411,-450.0,0.00013835,2]
[361477496,1747581036421,-450.0,0.00013835,2]
[361477497,1747581036430,-450.0,0.00013835,2]
[361477498,1747581036440,-450.0,0.00013835,2]
[361477499,1747581036450,-450.0,0.00013835,2]
[361477500,1747581036459,-450.0,0.00013835,2]
[361477501,1747581036468,-450.0,0.00013835,2]
[361477502,1747581036478,-704.0,0.00013835,2]
[361477503,1747581036488,-450.0,0.00013835,2]